bitfinex-derivatives/quotes_SOLF0:USTF0_20250207
["timestamp","ask_amount","ask_price","bid_price","bid_amount"]
[1738926592031,209.96836133,197.94,197.91,0.03532372]
[1738926592434,5.0492,197.96,197.91,0.03532372]
[1738926592622,1.5628,197.98,197.91,0.03532372]
[1738926592827,1.6071,197.97,197.91,0.03532372]
[1738926593027,5.0502,197.92,197.91,0.03532372]
[1738926593529,5.0502,197.92,197.91,4.55462011]
[1738926594132,3.0907,197.97,197.91,64.84140124]
[1738926594133,5.0497,197.95,197.91,64.84140124]
[1738926594332,3.0907,197.97,197.91,64.84140124]
[1738926595436,3.0907,197.97,197.92,4.54678116]
[1738926595629,59.85130578,201.38,197.95,26.44846158]
[1738926595630,79.21607371,198.1,197.95,26.44846158]
[1738926595825,27.96776158,198.14,197.98,26.44846158]
[1738926596026,1.5193,198.14,197.98,26.44846158]
[1738926596232,1.5193,198.14,198.01,26.44846158]
[1738926596739,5.0459,198.09,198.04,0.03662155]
[1738926596929,1.5193,198.14,198.04,0.03662155]
[1738926597238,5.0454,198.11,198.04,0.03662155]
[1738926597432,1.5193,198.14,198.05,4.54678116]
[1738926598236,26.44846158,198.11,198.05,4.54678116]
[1738926599327,5.0465,198.07,198.05,4.54678116]
[1738926599627,26.44846158,198.11,198.05,4.54678116]
[1738926599830,26.44846158,198.08,198.02,7.25916386]
[1738926600031,26.44846158,198.04,198.02,7.25916386]
[1738926600231,5.0474,198.03,198.02,4.79756386]
[1738926600432,26.44846158,198.04,197.93,6.18138761]
[1738926600933,5.0488,197.98,197.93,6.18138761]
[1738926601139,5.0488,197.98,197.97,0.03276212]
[1738926601736,5.0497,197.94,197.93,15.65138761]
[1738926602638,5.0497,197.94,197.93,9.47]
[1738926603139,5.08186842,197.95,197.93,9.47]
[1738926603335,0.03236842,197.95,197.93,9.47]
[1738926607145,5.0497,197.94,197.93,9.47]
[1738926607540,0.03236842,197.95,197.93,9.47]
[1738926607742,5.08186842,197.95,197.93,9.47]
[1738926608042,0.03236842,197.95,197.93,9.47]
[1738926609344,5.08206842,197.95,197.93,9.47]
[1738926609737,0.03236842,197.95,197.93,9.47]
[1738926610437,0.03236842,197.95,197.94,5.0497]
[1738926610746,0.03236842,197.95,197.92,0.03596566]
[1738926611238,26.44846158,198.04,197.92,0.03596566]
[1738926611439,26.44846158,198.04,197.89,26.44846158]
[1738926611638,26.44846158,198.01,197.85,26.44846158]
[1738926611843,26.44846158,198.01,197.89,10.2]
[1738926612244,5.0495,197.95,197.9,5.0505]
[1738926612450,5.0495,197.95,197.93,0.0370752]
[1738926612745,5.0497,197.94,197.93,0.0370752]
[1738926616348,26.44846158,197.95,197.8,5.0532]
[1738926616648,26.44846158,197.9,197.74,4.7306]
[1738926616946,5.0517,197.87,197.81,5.0529]
[1738926617146,26.44846158,197.9,197.74,4.7306]
[1738926617539,0.0381892,197.84,197.8,0.03583072]
[1738926618441,0.0381892,197.84,197.8,5.08913072]
[1738926618946,0.0381892,197.84,197.83,5.0525]
[1738926619142,4.757,197.97,197.8,0.03583072]
[1738926619346,5.0503,197.92,197.87,5.0513]
[1738926619647,5.0503,197.92,197.79,26.44846158]
[1738926620043,5.0503,197.92,197.87,5.0513]
[1738926620547,0.03557154,197.91,197.88,0.03540875]
[1738926620742,0.03557154,197.91,197.88,5.08660875]
[1738926621251,0.03557154,197.91,197.88,0.03540875]
[1738926621547,1.5484,197.97,197.88,0.03540875]
[1738926622245,5.0498,197.94,197.9,5.0505]
[1738926623250,1.5484,197.97,197.88,0.03540875]
[1738926623454,5.0492,197.96,197.92,5.0502]
[1738926623951,5.0492,197.96,197.92,5.08445811]
[1738926624154,1.5484,197.97,197.92,0.03425811]
[1738926624849,5.05,197.93,197.92,0.03425811]
[1738926625852,26.44846158,197.95,197.83,1.5202]
[1738926626549,1.5549,197.94,197.83,1.5202]
[1738926626750,1.5549,197.94,197.87,0.03597299]
[1738926626953,0.03425811,197.9,197.87,0.03597299]
[1738926627350,0.03425811,197.9,197.88,5.0512]
[1738926627852,0.03425811,197.9,197.87,0.03597299]
[1738926628455,5.051,197.89,197.87,0.03597299]
[1738926629650,0.03425811,197.9,197.87,0.03597299]
[1738926630048,0.03425811,197.9,197.88,5.051]
[1738926630244,0.03425811,197.9,197.87,0.03597299]
[1738926631849,0.03425811,197.9,197.88,5.0511]
[1738926632348,0.03425811,197.9,197.87,0.03597299]
[1738926632946,5.051,197.89,197.87,0.03597299]
[1738926633150,0.03425811,197.9,197.87,0.03597299]
[1738926633954,5.0512,197.88,197.87,0.03597299]
[1738926634154,0.03425811,197.9,197.87,0.03597299]
[1738926634660,0.03425811,197.9,197.87,5.08727299]
[1738926634857,0.03425811,197.9,197.87,0.03597299]
[1738926635249,0.03425811,197.9,197.89,5.051]
[1738926636052,1.5484,197.97,197.94,5.0495]
[1738926636559,6.5974,197.97,197.88,1.5857]
[1738926636758,6.5974,197.97,197.93,5.0499]
[1738926637160,55.95007002,198.05,197.96,26.44846158]
[1738926637354,55.95007002,198.05,198.0,5.0481]
[1738926637653,55.95007002,198.05,198.01,0.03211735]
[1738926637850,27.97513468,198.08,198.01,0.03211735]
[1738926638056,1.6128,198.1,198.02,26.44846158]
[1738926638453,55.95007002,198.12,198.06,5.0465]
[1738926638659,55.95007002,198.12,198.02,26.44846158]
[1738926639057,55.95007002,198.12,198.05,0.03529593]
[1738926639566,5.0456,198.1,198.05,0.03529593]
[1738926639859,55.95007002,198.12,198.05,0.03529593]
[1738926640958,5.0456,198.11,198.05,0.03529593]
[1738926641460,55.95007002,198.12,198.05,0.03529593]
[1738926641863,1.6128,198.15,198.05,0.03529593]
[1738926642362,5.0451,198.12,198.05,0.03529593]
[1738926642568,26.44846158,198.13,198.05,0.03529593]
[1738926642855,5.045,198.13,198.06,5.0466]
[1738926643060,1.6128,198.15,198.05,0.03529593]
[1738926643563,26.44846158,198.13,198.05,0.03529593]
[1738926644255,26.44846158,198.1,198.05,0.03529593]
[1738926644764,5.0464,198.08,198.05,0.03529593]
[1738926644965,26.44846158,198.1,198.05,0.03529593]
[1738926645264,5.0462,198.08,198.05,0.03529593]
[1738926645563,26.44846158,198.1,198.05,0.03529593]
[1738926645764,26.44846158,198.13,198.05,0.03529593]
[1738926645964,5.0459,198.1,198.05,0.03529593]
[1738926646157,1.6128,198.15,198.05,0.03529593]
[1738926646462,1.6128,198.15,198.09,5.0458]
[1738926646967,1.6128,198.15,198.1,5.07933961]
[1738926647168,1.6128,198.15,198.1,0.03373961]
[1738926647463,5.045,198.13,198.1,10.03373961]
[1738926647670,26.44846158,198.16,198.1,10.03373961]
[1738926648866,5.0446,198.15,198.1,10.03373961]
[1738926651965,5.0449,198.13,198.1,10.03373961]
[1738926652171,26.44846158,198.16,198.1,10.03373961]
[1738926653461,5.0454,198.11,198.1,10.03373961]
[1738926654567,26.44846158,198.12,198.1,10.03373961]
[1738926655571,26.44846158,198.15,198.1,10.03373961]
[1738926656276,31.49306158,198.15,198.1,10.03373961]
[1738926656470,26.44846158,198.15,198.1,10.03373961]
[1738926657175,26.44846158,198.15,198.11,5.0452]
[1738926658677,26.44846158,198.15,198.11,17.9352]
[1738926658879,26.44846158,198.15,198.11,12.89]
[1738926661380,5.0448,198.14,198.11,12.89]
[1738926661879,5.0451,198.13,198.11,12.89]
[1738926662078,26.44846158,198.15,198.11,12.89]
[1738926662877,5.0451,198.12,198.11,12.89]
[1738926663176,31.49356158,198.12,198.11,12.89]
[1738926665180,26.44846158,198.12,198.11,12.89]
[1738926665481,26.44846158,198.15,198.11,12.89]
[1738926666485,31.49356158,198.12,198.11,12.89]
[1738926666782,16.51370172,198.11,197.96,3.76]
[1738926667279,5.0464,198.08,198.02,5.0476]
[1738926667479,21.56010172,198.08,198.02,5.0476]
[1738926667874,21.56010172,198.08,197.96,3.76]
[1738926667875,5.07987353,198.07,198.03,0.03415368]
[1738926668079,16.51370172,198.05,198.03,0.03415368]
[1738926668580,5.0472,198.04,198.03,0.03415368]
[1738926668977,16.51370172,198.05,197.89,106.69147433]
[1738926669286,16.51370172,197.96,197.89,90.17777261]
[1738926669784,16.51370172,197.96,197.91,5.0503]
[1738926670184,1.5234,198.05,197.92,0.03655809]
[1738926670185,0.03759696,197.95,197.92,0.03655809]
[1738926670482,16.51370172,197.99,197.89,119.09147433]
[1738926670682,0.03717637,197.95,197.94,5.0495]
[1738926671184,0.03510416,197.96,197.94,5.0495]
[1738926671381,0.03510416,197.96,197.93,0.03217716]
[1738926671382,26.4429914,198.02,197.93,0.03217716]
[1738926671581,27.9663914,198.05,197.97,5.0489]
[1738926671781,0.03591666,197.99,197.97,5.0489]
[1738926671982,5.0474,198.04,197.99,0.03575494]
[1738926672182,1.5756,198.06,197.99,0.03575494]
[1738926672378,0.03551987,198.03,197.99,0.03575494]
[1738926672687,0.03551987,198.03,198.02,5.0477]
[1738926674386,0.03551987,198.03,197.99,0.03575494]
[1738926675084,5.08301987,198.03,197.99,0.03575494]
[1738926675280,0.03551987,198.03,197.99,0.03575494]
[1738926675588,0.03551987,198.03,197.99,5.08405494]
[1738926675778,0.03551987,198.03,197.99,0.03575494]
[1738926676285,0.03551987,198.03,198.01,5.0478]
[1738926676984,0.03551987,198.03,198.02,5.0477]
[1738926677487,1.6034,198.12,197.99,0.03575494]
[1738926677686,5.0457,198.1,197.99,1.5592]
[1738926678286,5.0457,198.1,198.06,5.0465]
[1738926678488,5.07807342,198.1,198.06,5.08139055]
[1738926678688,0.03237342,198.1,198.06,0.03489055]
[1738926678893,0.03237342,198.1,198.09,5.0459]
[1738926679389,0.03237342,198.1,198.07,5.0462]
[1738926679687,0.03237342,198.1,198.06,0.03489055]
[1738926681593,0.03237342,198.1,198.08,5.0459]
[1738926682390,1.5591,198.2,198.08,5.0459]
[1738926682391,26.4429914,198.23,198.09,3.8]
[1738926682594,27.41157842,198.29,198.17,26.4429914]
[1738926683093,16.7436795,198.29,198.17,26.4429914]
[1738926683495,16.7436795,198.29,198.21,26.4429914]
[1738926683795,16.7436795,198.29,198.25,26.4429914]
[1738926683996,55.95007002,198.27,198.25,26.4429914]
[1738926684590,139.06716449,198.31,198.25,26.4429914]
[1738926684591,54.82837976,198.31,198.25,26.4429914]
[1738926684895,148.23195562,198.33,198.3,26.4429914]
[1738926685294,148.23195562,198.33,198.3,26.47670416]
[1738926685496,146.84757437,198.33,198.32,5.04]
[1738926687095,21.7134978,198.33,198.32,5.04]
[1738926687391,486.73507573,198.45,198.32,5.04]
[1738926687392,5.038,198.4,198.32,5.04]
[1738926687791,5.038,198.4,198.34,0.03430594]
[1738926688896,5.26508227,198.57,198.34,0.03430594]
[1738926689097,5.0383,198.39,198.32,5.04]
[1738926689298,26.4429914,198.47,198.39,5.822e-05]
[1738926689497,5.0383,198.39,198.38,15.94033289]
[1738926690699,5.0383,198.39,198.38,6.10073289]
[1738926691102,5.0383,198.39,198.37,0.03548397]
[1738926691103,26.4429914,198.5,198.37,0.03548397]
[1738926691297,26.4429914,198.5,198.32,11.14]
[1738926691504,26.4429914,198.5,198.42,0.03815281]
[1738926691699,5.0375,198.43,198.42,0.03815281]
[1738926692101,5.0375,198.43,198.42,5.281e-05]
[1738926692797,5.0368,198.45,198.32,11.14]
[1738926692999,26.4429914,198.5,198.32,11.14]
[1738926693207,26.4429914,198.43,198.32,11.14]
[1738926693409,5.0391,198.36,198.32,11.14]
[1738926693902,0.03757104,198.36,198.32,11.17560092]
[1738926694806,5.07667104,198.36,198.32,11.17560092]
[1738926695010,0.03757104,198.36,198.32,11.17560092]
[1738926696410,0.03757104,198.36,198.32,16.21560092]
[1738926696609,0.03757104,198.36,198.32,11.17560092]
[1738926696911,5.07677104,198.36,198.32,11.17560092]
[1738926697807,5.07677104,198.36,198.32,16.21560092]
[1738926698009,0.03757104,198.36,198.32,11.17560092]
[1738926698712,5.07677104,198.36,198.32,16.21560092]
[1738926698912,0.03757104,198.36,198.32,16.21560092]
[1738926699111,0.03757104,198.36,198.32,11.17560092]
[1738926699407,0.03757104,198.36,198.33,5.0396]
[1738926699707,0.03757104,198.36,198.32,0.03560092]
[1738926699911,5.0394,198.35,198.32,0.03560092]
[1738926700213,0.03757104,198.36,198.32,0.03560092]
[1738926700510,5.07667104,198.36,198.32,5.07540092]
[1738926700709,5.07667104,198.36,198.32,0.03560092]
[1738926700910,5.07667104,198.36,198.32,14.73560092]
[1738926701915,5.0398,198.33,198.32,14.73560092]
[1738926702305,10.0726,198.47,198.32,14.73560092]
[1738926702606,26.4429914,198.54,198.35,26.4429914]
[1738926702811,3.1708,198.53,198.36,1.4766]
[1738926703112,3.1708,198.53,198.42,5.0373]
[1738926703113,5.0361,198.48,198.42,5.0373]
[1738926703310,3.1708,198.53,198.42,5.0373]
[1738926703506,3.1708,198.53,198.36,1.4766]
[1738926703507,1.6155,198.52,198.43,0.03569452]
[1738926703712,5.037,198.44,198.43,0.03569452]
[1738926707215,26.4429914,198.5,198.32,14.7]
[1738926707413,26.4429914,198.46,198.32,14.7]
[1738926707813,5.0386,198.38,198.32,19.74]
[1738926708013,26.4429914,198.46,198.32,14.7]
[1738926708519,0.03627629,198.41,198.37,0.0329607]
[1738926709017,5.0385,198.38,198.37,0.0329607]
[1738926710014,5.0385,198.38,198.27,26.4429914]
[1738926710015,0.03627629,198.41,198.27,26.4429914]
[1738926710221,26.4429914,198.35,198.2,28.0200914]
[1738926710421,11.7129914,198.35,198.2,1.5771]
[1738926710622,5.041,198.29,198.23,5.0421]
[1738926710821,11.7129914,198.35,198.2,1.5771]
[1738926711218,5.039,198.37,198.31,5.0402]
[1738926711524,3.1557,198.4,198.3,11.46]
[1738926711724,0.03232487,198.36,198.3,11.46]
[1738926711926,0.03232487,198.36,198.33,0.03386099]
[1738926712523,5.07142487,198.36,198.33,0.03386099]
[1738926712723,0.03232487,198.36,198.33,0.03386099]
[1738926713223,5.0393,198.35,198.33,0.03386099]
[1738926713419,0.03232487,198.36,198.33,0.03386099]
[1738926713923,0.03232487,198.36,198.3,11.46]
[1738926715027,0.03232487,198.36,198.31,0.0323734]
[1738926715225,0.03232487,198.36,198.33,5.0398]
[1738926715526,0.03232487,198.36,198.31,0.0323734]
[1738926715925,0.03232487,198.36,198.34,5.0393]
[1738926716128,0.03232487,198.36,198.31,0.0323734]
[1738926717226,0.03232487,198.36,198.33,5.0396]
[1738926718324,0.03232487,198.36,198.31,0.0323734]
[1738926719329,0.03232487,198.36,198.34,55.62686579]
[1738926720427,5.0393,198.35,198.34,55.62686579]
[1738926721125,5.07142487,198.36,198.34,55.62686579]
[1738926721328,5.07142487,198.36,198.32,30.86417398]
[1738926722328,5.0397,198.34,198.32,25.82417398]
[1738926722729,0.03232487,198.36,198.32,25.82417398]
[1738926723030,0.03232487,198.36,198.33,5.0397]
[1738926723331,0.03232487,198.36,198.32,25.82417398]
[1738926723826,0.03232487,198.36,198.32,32.4752419]
[1738926724131,0.03232487,198.36,198.34,5.0393]
[1738926724532,0.03232487,198.36,198.32,32.4752419]
[1738926724734,0.03232487,198.36,198.33,5.0398]
[1738926724935,0.03232487,198.36,198.32,32.4752419]
[1738926725130,5.0398,198.33,198.32,32.4752419]
[1738926725335,5.0398,198.33,198.32,27.5548419]
[1738926725539,0.03232487,198.36,198.32,16.0848419]
[1738926725932,5.0398,198.33,198.32,16.0848419]
[1738926726136,26.4429914,198.35,198.31,55.65923919]
[1738926726332,26.4429914,198.35,198.31,48.22333919]
[1738926726528,26.4429914,198.35,198.31,10.72]
[1738926726737,26.4429914,198.35,198.31,3.144]
[1738926726937,5.04,198.32,198.31,3.144]
[1738926727535,26.4429914,198.35,198.3,0.03488328]
[1738926727737,5.0403,198.31,198.3,0.03488328]
[1738926731638,5.0403,198.31,198.3,8.328e-05]
[1738926733034,5.0418,198.25,198.24,3.93]
[1738926733530,5.0418,198.25,198.21,1.6006]
[1738926733531,26.4429914,198.32,198.18,4.42543061]
[1738926734038,26.4429914,198.29,198.18,4.42543061]
[1738926734239,26.4429914,198.29,198.24,0.03520363]
[1738926734240,0.0335424,198.28,198.24,0.03520363]
[1738926734736,26.4429914,198.26,198.24,0.03520363]
[1738926734938,5.0418,198.25,198.24,3.63e-06]
[1738926738631,5.0428,198.21,198.2,3.94]
[1738926739035,5.0438,198.18,198.15,1.6266]
[1738926739338,26.4429914,198.23,198.15,1.6266]
[1738926739532,26.4429914,198.23,198.05,26.4429914]
[1738926739839,26.4429914,198.17,198.15,0.03427679]
[1738926740137,5.0452,198.12,198.09,3.247]
[1738926740437,26.4429914,198.17,198.14,0.0332878]
[1738926740634,26.4429914,198.17,198.09,3.247]
[1738926740837,5.0445,198.15,198.14,0.03765603]
[1738926741437,0.03289271,198.17,198.14,0.03765603]
[1738926742240,5.043,198.21,198.15,5.0442]
[1738926742441,26.4429914,198.26,198.14,0.03765603]
[1738926742740,5.0426,198.22,198.16,5.044]
[1738926743538,0.03395973,198.21,198.17,0.03334668]
[1738926746139,5.0436,198.18,198.17,0.03334668]
[1738926752158,5.0434,198.19,198.17,0.03334668]
[1738926752954,0.03395973,198.21,198.17,5.07714668]
[1738926753151,0.03395973,198.21,198.17,0.03334668]
[1738926753350,26.4429914,198.29,198.18,3.1454]
[1738926753557,5.0418,198.26,198.2,5.0429]
[1738926753759,26.4429914,198.29,198.2,5.0429]
[1738926754255,26.4429914,198.26,198.18,3.1454]
[1738926754656,26.4778956,198.26,198.23,0.0321645]
[1738926754857,5.0421,198.24,198.23,0.0321645]
[1738926757454,26.4778956,198.26,198.0,205.3947616]
[1738926757455,26.4778956,198.26,198.11,3.1885]
[1738926757656,26.4429914,198.3,198.11,3.1885]
[1738926757657,26.4429914,198.22,198.11,3.1885]
[1738926758057,5.0433,198.2,198.11,3.1885]
[1738926758360,26.4429914,198.3,198.11,3.1885]
[1738926758361,26.4429914,198.25,198.11,3.1885]
[1738926758564,0.03391719,198.17,198.14,0.03811516]
[1738926758763,26.4429914,198.25,198.14,0.03811516]
[1738926759955,0.03283953,198.21,198.14,0.03811516]
[1738926761055,5.0438,198.18,198.14,0.03811516]
[1738926761362,0.03283953,198.21,198.14,0.03811516]
[1738926761755,5.0444,198.15,198.14,0.03811516]
[1738926762151,26.4429914,198.22,198.14,0.03811516]
[1738926762353,5.0439,198.17,198.14,0.03811516]
[1738926762552,0.03332325,198.2,198.14,0.03811516]
[1738926763960,26.4429914,198.19,198.14,0.03811516]
[1738926764359,5.0444,198.15,198.14,0.03811516]
[1738926765964,5.0442,198.16,198.14,0.03811516]
[1738926766159,26.4429914,198.19,198.14,0.03811516]
[1738926766361,0.03332325,198.2,198.14,0.03811516]
[1738926766553,5.0435,198.19,198.14,5.08251516]
[1738926767565,0.03332325,198.2,198.14,5.08251516]
[1738926767767,5.0437,198.18,198.14,5.08251516]
[1738926768262,5.044,198.17,198.14,0.03811516]
[1738926768464,0.03332325,198.2,198.14,0.03811516]
[1738926768664,56.05028932,198.29,198.14,0.03811516]
[1738926768665,55.97738932,198.29,198.15,26.4429914]
[1738926768865,55.97738932,198.31,198.19,26.4429914]
[1738926769067,61.01778932,198.31,198.24,5.0421]
[1738926769762,0.03743152,198.29,198.26,0.03789022]
[1738926772977,5.07833152,198.29,198.26,0.03789022]
[1738926773172,0.03743152,198.29,198.26,0.03789022]
[1738926774074,5.07843152,198.29,198.26,0.03789022]
[1738926774276,0.03743152,198.29,198.26,0.03789022]
[1738926776078,5.0413,198.28,198.26,0.03789022]
[1738926776672,5.0413,198.27,198.26,0.03789022]
[1738926781078,5.0413,198.27,198.12,3.94]
[1738926781079,5.0431,198.2,198.1,26.4429914]
[1738926781385,26.4429914,198.24,198.13,3.1973]
[1738926781575,5.0429,198.21,198.13,3.1973]
[1738926781772,26.4429914,198.24,198.13,3.1973]
[1738926782177,5.0441,198.17,198.13,3.1973]
[1738926782373,0.03547977,198.2,198.13,3.23070946]
[1738926783585,5.0443,198.16,198.13,3.23070946]
[1738926784384,5.0446,198.14,198.13,0.03340946]
[1738926786990,5.07879575,198.15,198.13,0.03340946]
[1738926787191,0.03439575,198.15,198.13,0.03340946]
[1738926787792,5.0446,198.14,198.13,0.03340946]
[1738926788182,0.03439575,198.15,198.13,0.03340946]
[1738926788892,5.07879575,198.15,198.13,0.03340946]
[1738926789293,5.0446,198.14,198.13,0.03340946]
[1738926789889,5.07879575,198.15,198.13,0.03340946]
[1738926790196,0.03439575,198.15,198.13,0.03340946]
[1738926791297,5.0446,198.14,198.13,0.03340946]
[1738926793185,0.03439575,198.15,198.13,0.03340946]
[1738926794088,0.03439575,198.15,198.13,5.07820946]
[1738926794294,5.0436,198.19,198.13,0.03340946]
[1738926794995,5.0432,198.2,198.13,0.03340946]
[1738926795396,0.03565997,198.18,198.13,0.03340946]
[1738926795596,0.03565997,198.18,198.15,5.0441]
[1738926795797,0.03565997,198.18,198.14,1.4923]
[1738926796997,0.03565997,198.18,198.15,5.0442]
[1738926797199,0.03565997,198.18,198.14,1.4923]
[1738926797395,0.03565997,198.18,198.14,2.9943]
[1738926797595,0.03565997,198.18,198.15,5.0442]
[1738926798294,26.4429914,198.27,198.15,5.0442]
[1738926798497,55.97738932,198.35,198.21,26.4429914]
[1738926798995,5.0398,198.33,198.27,5.0411]
[1738926799300,5.0398,198.33,198.21,26.4429914]
[1738926799498,0.03387143,198.32,198.28,0.03461319]
[1738926799801,0.03387143,198.32,198.29,5.0408]
[1738926800197,0.03387143,198.32,198.28,0.03461319]
[1738926800398,55.97738932,198.35,198.28,0.03461319]
[1738926800700,55.97738932,198.35,198.28,26.47760459]
[1738926800900,55.97738932,198.35,198.3,5.0405]
[1738926801101,55.97738932,198.35,198.28,26.47760459]
[1738926801504,5.0759803,198.33,198.28,31.51860459]
[1738926801694,5.0399,198.33,198.28,5.041]
[1738926801894,0.03242597,198.32,198.29,0.03504394]
[1738926802398,0.03242597,198.32,198.29,5.07574394]
[1738926804307,5.07262597,198.32,198.29,0.03504394]
[1738926804506,0.03242597,198.32,198.29,0.03504394]
[1738926805208,5.0405,198.31,198.29,0.03504394]
[1738926805409,0.03242597,198.32,198.29,0.03504394]
[1738926806710,5.0405,198.31,198.29,0.03504394]
[1738926808312,5.0406,198.3,198.29,0.03504394]
[1738926810011,5.07272597,198.32,198.29,0.03504394]
[1738926810314,0.03242597,198.32,198.29,0.03504394]
[1738926810514,5.0406,198.3,198.29,0.03504394]
[1738926810711,0.03242597,198.32,198.29,0.03504394]
[1738926813216,5.07252597,198.32,198.29,0.03504394]
[1738926813618,0.03242597,198.32,198.29,5.07584394]
[1738926813816,0.03242597,198.32,198.29,0.03504394]
[1738926816024,0.03242597,198.32,198.29,5.07574394]
[1738926817818,5.07252597,198.32,198.29,5.07574394]
[1738926820620,0.03242597,198.32,198.29,0.03504394]
[1738926820816,5.0404,198.31,198.29,0.03504394]
[1738926821421,5.07252597,198.32,198.29,5.07584394]
[1738926821716,5.07252597,198.32,198.29,0.03504394]
[1738926822921,5.07252597,198.32,198.3,5.0405]
[1738926823621,16.46230664,198.41,198.29,0.03504394]
[1738926823822,18.09590664,198.44,198.28,16.46230664]
[1738926824025,5.0383,198.39,198.34,5.0393]
[1738926824321,16.46230664,198.41,198.28,16.46230664]
[1738926824717,5.039,198.37,198.33,0.03663769]
[1738926826128,5.0385,198.38,198.34,5.0395]
[1738926826426,16.46230664,198.41,198.33,0.03663769]
[1738926826627,5.0385,198.39,198.35,5.0392]
[1738926828028,5.0385,198.39,198.34,5.0395]
[1738926828425,16.46230664,198.41,198.33,0.03663769]
[1738926829832,5.0386,198.38,198.33,5.07623769]
[1738926830130,5.0386,198.38,198.33,0.03663769]
[1738926830325,16.46230664,198.41,198.33,0.03663769]
[1738926830829,5.0383,198.39,198.35,5.0392]
[1738926831032,5.0383,198.39,198.33,0.03663769]
[1738926831233,5.0383,198.39,198.34,5.0395]
[1738926832432,16.46230664,198.41,198.33,0.03663769]
[1738926834232,5.0392,198.36,198.33,0.03663769]
[1738926834636,16.46230664,198.41,198.33,0.03663769]
[1738926835635,5.039,198.37,198.33,0.03663769]
[1738926836037,16.46230664,198.41,198.33,0.03663769]
[1738926837741,5.0391,198.36,198.33,0.03663769]
[1738926840145,0.1063,198.46,198.33,0.03663769]
[1738926840146,5.0395,198.34,198.33,0.03663769]
[1738926840339,5.0395,198.34,198.3,5.0405]
[1738926840642,5.0395,198.34,198.32,0.03435072]
[1738926840830,5.0398,198.33,198.32,0.03435072]
[1738926844346,5.0392,198.36,198.32,5.07435072]
[1738926844644,16.46230664,198.41,198.32,0.03435072]
[1738926845745,5.039,198.36,198.32,5.07435072]
[1738926846040,16.46230664,198.41,198.32,0.03435072]
[1738926846241,5.0384,198.39,198.32,0.03435072]
[1738926846543,16.46230664,198.41,198.32,0.03435072]
[1738926846941,5.0384,198.39,198.32,0.03435072]
[1738926847141,16.46230664,198.41,198.32,0.03435072]
[1738926847641,5.0384,198.39,198.33,5.0398]
[1738926847845,16.46230664,198.41,198.32,0.03435072]
[1738926848346,5.0383,198.39,198.34,5.0394]
[1738926848746,16.46230664,198.41,198.34,5.0394]
[1738926849748,5.0386,198.38,198.34,5.0394]
[1738926850846,5.0386,198.38,198.33,5.0397]
[1738926851553,5.0386,198.38,198.34,5.0395]
[1738926851752,5.0386,198.38,198.32,0.03435072]
[1738926852453,5.0386,198.38,198.33,5.0397]
[1738926852653,5.0386,198.38,198.32,0.03435072]
[1738926852849,5.0386,198.38,198.34,5.0395]
[1738926853051,5.0386,198.38,198.32,0.03435072]
[1738926853250,5.0388,198.37,198.32,0.03435072]
[1738926853847,5.0388,198.37,198.33,5.0396]
[1738926854449,5.0387,198.38,198.34,5.0394]
[1738926854749,16.46230664,198.41,198.34,5.0394]
[1738926854961,5.0389,198.37,198.33,5.0397]
[1738926855153,16.46230664,198.41,198.32,0.03435072]
[1738926855652,5.0387,198.38,198.34,5.0393]
[1738926855848,5.0387,198.38,198.32,0.03435072]
[1738926855849,16.46230664,198.41,198.32,0.03435072]
[1738926856044,16.46230664,198.44,198.32,0.03435072]
[1738926856248,5.0377,198.42,198.31,16.46230664]
[1738926856450,16.46230664,198.44,198.36,0.03781385]
[1738926856651,10.53100336,198.42,198.36,0.03781385]
[1738926857252,5.038,198.41,198.37,5.0387]
[1738926857746,10.53100336,198.42,198.37,5.0387]
[1738926857948,5.038,198.4,198.37,5.0387]
[1738926858443,15.56900336,198.4,198.37,5.0387]
[1738926859053,15.56860336,198.42,198.36,0.03781385]
[1738926860249,5.0376,198.42,198.37,10.53100336]
[1738926860454,5.0375,198.42,198.37,10.53100336]
[1738926860852,5.0375,198.42,198.38,5.0383]
[1738926861054,5.0375,198.42,198.37,10.53100336]
[1738926862255,5.0375,198.42,198.39,5.0381]
[1738926863752,5.0379,198.41,198.38,5.0385]
[1738926864058,5.0379,198.41,198.37,10.53100336]
[1738926864059,10.53100336,198.42,198.36,0.03781385]
[1738926864560,10.53100336,198.42,198.37,5.0387]
[1738926865558,1.4788,198.47,198.36,0.03781385]
[1738926865559,10.53100336,198.4,198.36,0.03781385]